[Event "Titled Tuesday Blitz November 07 Early 2023"]
[White "Oparin, Grigoriy"]
[Black "Kozak, Antoni"]
[WhiteFideId "24125890"]
[BlackFideId "21832030"]
[WhiteElo "2993"]
[BlackElo "2819"]
[Result "1-0"]
[Round "8"]
[TimeControl "180+1"]
[Date "2023.11.07"]
[WhiteClock "0:01:13"]
[BlackClock "0:00:06"]
[Board "13"]

1. Nf3 {[%clk 0:03:00]}  Nf6 {[%clk 0:02:59]} 2. g3 {[%clk 0:03:01]}  c5 {[%clk 0:03:00]} 3. Bg2 {[%clk 0:03:01]}  Nc6 {[%clk 0:03:01]} 4. c4 {[%clk 0:03:02]}  d5 {[%clk 0:03:00]} 5. cxd5 {[%clk 0:03:02]}  Nxd5 {[%clk 0:03:01]} 6. Nc3 {[%clk 0:03:03]}  Nc7 {[%clk 0:03:02]} 7. a3 {[%clk 0:03:03]}  f6 {[%clk 0:02:57]} 8. b4 {[%clk 0:02:59]}  cxb4 {[%clk 0:02:58]} 9. axb4 {[%clk 0:03:00]}  Nxb4 {[%clk 0:02:58]} 10. Qa4+ {[%clk 0:02:58]}  Nc6 {[%clk 0:02:58]} 11. Nd4 {[%clk 0:02:58]}  Bd7 {[%clk 0:02:53]} 12. Nxc6 {[%clk 0:02:57]}  Bxc6 {[%clk 0:02:53]} 13. Bxc6+ {[%clk 0:02:56]}  bxc6 {[%clk 0:02:54]} 14. Qxc6+ {[%clk 0:02:56]}  Qd7 {[%clk 0:02:54]} 15. Qb7 {[%clk 0:02:53]}  a6 {[%clk 0:02:21]} 16. Ba3 {[%clk 0:02:48]}  e6 {[%clk 0:02:03]} 17. Bxf8 {[%clk 0:02:49]}  Rxf8 {[%clk 0:02:03]} 18. O-O {[%clk 0:02:48]}  Ke7 {[%clk 0:01:58]} 19. Rfc1 {[%clk 0:02:45]}  Rfb8 {[%clk 0:01:31]} 20. Qe4 {[%clk 0:02:45]}  h6 {[%clk 0:01:17]} 21. Na4 {[%clk 0:02:45]}  Nd5 {[%clk 0:01:10]} 22. Nc5 {[%clk 0:02:12]}  Qd6 {[%clk 0:01:10]} 23. d4 {[%clk 0:01:58]}  Kf7 {[%clk 0:01:01]} 24. Qf3 {[%clk 0:01:57]}  Ra7 {[%clk 0:00:50]} 25. e4 {[%clk 0:01:51]}  Ne7 {[%clk 0:00:47]} 26. Rd1 {[%clk 0:01:46]}  a5 {[%clk 0:00:26]} 27. Qh5+ {[%clk 0:01:42]}  Kg8 {[%clk 0:00:22]} 28. Qe2 {[%clk 0:01:41]}  Rb4 {[%clk 0:00:18]} 29. Qe3 {[%clk 0:01:37]}  Ra8 {[%clk 0:00:14]} 30. Qc3 {[%clk 0:01:28]}  Rb5 {[%clk 0:00:10]} 31. h4 {[%clk 0:01:16]}  Kh7 {[%clk 0:00:08]} 32. Qd3 {[%clk 0:01:13]}  Rb4 {[%clk 0:00:06]} 33. e5+ {[%clk 0:01:13]} 1-0


[Site "https://www.chess.com"]

[Event "Titled Tuesday Blitz November 07 Early 2023"]
[White "Aravindh, Chithambaram VR."]
[Black "Aradhya, Garg"]
[WhiteFideId "5072786"]
[BlackFideId "25006746"]
[WhiteElo "2933"]
[BlackElo "2726"]
[Result "0-1"]
[Round "8"]
[TimeControl "180+1"]
[Date "2023.11.07"]
[WhiteClock "0:00:01"]
[BlackClock "0:00:06"]
[Board "16"]

1. b3 {[%clk 0:03:00]}  e5 {[%clk 0:02:59]} 2. Bb2 {[%clk 0:03:01]}  Nc6 {[%clk 0:03:00]} 3. c4 {[%clk 0:03:01]}  Nf6 {[%clk 0:02:56]} 4. Nf3 {[%clk 0:03:01]}  e4 {[%clk 0:02:56]} 5. Nd4 {[%clk 0:03:01]}  Bc5 {[%clk 0:02:57]} 6. Nf5 {[%clk 0:03:01]}  O-O {[%clk 0:02:57]} 7. e3 {[%clk 0:03:00]}  d6 {[%clk 0:02:55]} 8. Ng3 {[%clk 0:02:59]}  Ne5 {[%clk 0:02:49]} 9. Bxe5 {[%clk 0:02:24]}  dxe5 {[%clk 0:02:48]} 10. Nc3 {[%clk 0:02:24]}  Re8 {[%clk 0:02:11]} 11. Be2 {[%clk 0:02:19]}  Bb4 {[%clk 0:02:09]} 12. Qc2 {[%clk 0:02:19]}  Bxc3 {[%clk 0:01:59]} 13. dxc3 {[%clk 0:02:20]}  b6 {[%clk 0:01:59]} 14. Nxe4 {[%clk 0:02:18]}  Bf5 {[%clk 0:01:56]} 15. Bd3 {[%clk 0:02:13]}  Nd7 {[%clk 0:01:35]} 16. O-O-O {[%clk 0:01:54]}  Qe7 {[%clk 0:01:31]} 17. Kb2 {[%clk 0:01:53]}  Bg6 {[%clk 0:01:30]} 18. g4 {[%clk 0:01:52]}  a5 {[%clk 0:01:27]} 19. a4 {[%clk 0:01:52]}  Rab8 {[%clk 0:01:21]} 20. h4 {[%clk 0:01:51]}  h6 {[%clk 0:01:21]} 21. g5 {[%clk 0:01:40]}  h5 {[%clk 0:01:11]} 22. Rd2 {[%clk 0:01:36]}  Nc5 {[%clk 0:00:58]} 23. Nxc5 {[%clk 0:01:35]}  bxc5 {[%clk 0:00:59]} 24. Bxg6 {[%clk 0:01:23]}  fxg6 {[%clk 0:01:00]} 25. Qxg6 {[%clk 0:00:32]}  Rb6 {[%clk 0:00:59]} 26. Qxh5 {[%clk 0:00:31]}  Reb8 {[%clk 0:00:57]} 27. Qd1 {[%clk 0:00:22]}  Rxb3+ {[%clk 0:00:13]} 28. Qxb3 {[%clk 0:00:23]}  Rxb3+ {[%clk 0:00:13]} 29. Kxb3 {[%clk 0:00:23]}  Qe6 {[%clk 0:00:14]} 30. Rhd1 {[%clk 0:00:21]}  Qb6+ {[%clk 0:00:14]} 31. Ka3 {[%clk 0:00:18]}  Qa6 {[%clk 0:00:14]} 32. h5 {[%clk 0:00:07]}  Qxc4 {[%clk 0:00:13]} 33. Kb2 {[%clk 0:00:06]}  Kf7 {[%clk 0:00:13]} 34. Rd7+ {[%clk 0:00:06]}  Ke6 {[%clk 0:00:13]} 35. R1d2 {[%clk 0:00:05]}  Qxa4 {[%clk 0:00:13]} 36. Rxg7 {[%clk 0:00:05]}  Qb5+ {[%clk 0:00:12]} 37. Kc1 {[%clk 0:00:06]}  a4 {[%clk 0:00:09]} 38. h6 {[%clk 0:00:04]}  a3 {[%clk 0:00:09]} 39. h7 {[%clk 0:00:03]}  Qf1+ {[%clk 0:00:09]} 40. Kc2 {[%clk 0:00:03]}  a2 {[%clk 0:00:08]} 41. Rg6+ {[%clk 0:00:03]}  Kf5 {[%clk 0:00:09]} 42. Rf6+ {[%clk 0:00:03]}  Ke4 {[%clk 0:00:06]} 43. Kb3 {[%clk 0:00:02]}  Qb1+ {[%clk 0:00:05]} 44. Kc4 {[%clk 0:00:02]}  a1=Q {[%clk 0:00:05]} 45. h8=Q {[%clk 0:00:01]}  Qa4+ {[%clk 0:00:05]} 46. Kxc5 {[%clk 0:00:01]}  Qbb5# {[%clk 0:00:06]} 0-1


[Site "https://www.chess.com"]

[Event "Titled Tuesday Blitz November 07 Early 2023"]
[White "Lukovic, Vladimir"]
[Black "Navara, David"]
[WhiteFideId "942952"]
[BlackFideId "309095"]
[WhiteElo "2721"]
[BlackElo "2928"]
[Result "0-1"]
[Round "8"]
[TimeControl "180+1"]
[Date "2023.11.07"]
[WhiteClock "0:00:23"]
[BlackClock "0:01:11"]
[Board "17"]

1. e4 {[%clk 0:03:00]}  c6 {[%clk 0:03:00]} 2. d4 {[%clk 0:02:59]}  d5 {[%clk 0:03:00]} 3. e5 {[%clk 0:02:59]}  Bf5 {[%clk 0:03:00]} 4. Be3 {[%clk 0:02:57]}  e6 {[%clk 0:02:59]} 5. Nd2 {[%clk 0:02:56]}  Nd7 {[%clk 0:02:58]} 6. Ngf3 {[%clk 0:02:53]}  f6 {[%clk 0:02:54]} 7. c4 {[%clk 0:02:49]}  fxe5 {[%clk 0:02:40]} 8. dxe5 {[%clk 0:02:48]}  Bb4 {[%clk 0:02:39]} 9. a3 {[%clk 0:02:40]}  Bc5 {[%clk 0:02:39]} 10. Nd4 {[%clk 0:02:28]}  Ne7 {[%clk 0:02:22]} 11. b4 {[%clk 0:02:25]}  Bxd4 {[%clk 0:02:22]} 12. Bxd4 {[%clk 0:02:26]}  O-O {[%clk 0:02:17]} 13. Be2 {[%clk 0:02:03]}  Ng6 {[%clk 0:02:15]} 14. g4 {[%clk 0:01:51]}  Be4 {[%clk 0:02:14]} 15. Nxe4 {[%clk 0:01:44]}  dxe4 {[%clk 0:02:15]} 16. Qc2 {[%clk 0:01:38]}  Ndxe5 {[%clk 0:02:12]} 17. O-O-O {[%clk 0:01:32]}  Nd3+ {[%clk 0:02:08]} 18. Bxd3 {[%clk 0:01:26]}  Qxd4 {[%clk 0:02:08]} 19. Bxe4 {[%clk 0:01:24]}  Qa1+ {[%clk 0:02:08]} 20. Qb1 {[%clk 0:01:21]}  Qxa3+ {[%clk 0:02:07]} 21. Qb2 {[%clk 0:01:21]}  Qxb2+ {[%clk 0:02:07]} 22. Kxb2 {[%clk 0:01:22]}  Rxf2+ {[%clk 0:02:08]} 23. Kc3 {[%clk 0:01:22]}  Ne5 {[%clk 0:01:57]} 24. Rhe1 {[%clk 0:01:18]}  g6 {[%clk 0:01:34]} 25. Bh1 {[%clk 0:01:00]}  Nxg4 {[%clk 0:01:32]} 26. Rxe6 {[%clk 0:01:00]}  Rxh2 {[%clk 0:01:25]} 27. Re7 {[%clk 0:00:53]}  Rh3+ {[%clk 0:01:13]} 28. Kc2 {[%clk 0:00:23]}  Ne3+ {[%clk 0:01:11]} 0-1


[Site "https://www.chess.com"]

[Event "Titled Tuesday Blitz November 07 Early 2023"]
[White "Jakubowski, Krzysztof"]
[Black "Steinberg, Nitzan"]
[WhiteFideId "1112848"]
[BlackFideId "2801795"]
[WhiteElo "2689"]
[BlackElo "2892"]
[Result "0-1"]
[Round "8"]
[TimeControl "180+1"]
[Date "2023.11.07"]
[WhiteClock "0:00:36"]
[BlackClock "0:00:53"]
[Board "18"]

1. e4 {[%clk 0:03:00]}  c5 {[%clk 0:02:59]} 2. Nf3 {[%clk 0:03:00]}  d6 {[%clk 0:02:59]} 3. d4 {[%clk 0:03:00]}  cxd4 {[%clk 0:03:00]} 4. Nxd4 {[%clk 0:03:00]}  Nf6 {[%clk 0:03:01]} 5. Nc3 {[%clk 0:02:59]}  a6 {[%clk 0:03:01]} 6. Be2 {[%clk 0:02:58]}  e6 {[%clk 0:03:01]} 7. Be3 {[%clk 0:02:56]}  Be7 {[%clk 0:03:01]} 8. a4 {[%clk 0:02:47]}  Nc6 {[%clk 0:02:57]} 9. O-O {[%clk 0:02:46]}  Bd7 {[%clk 0:02:55]} 10. f4 {[%clk 0:02:44]}  Nb4 {[%clk 0:02:51]} 11. Kh1 {[%clk 0:02:41]}  Rc8 {[%clk 0:02:51]} 12. Bf3 {[%clk 0:02:38]}  Qc7 {[%clk 0:02:50]} 13. Qd2 {[%clk 0:02:36]}  O-O {[%clk 0:02:41]} 14. g4 {[%clk 0:02:22]}  Bc6 {[%clk 0:02:12]} 15. g5 {[%clk 0:02:19]}  Nd7 {[%clk 0:02:12]} 16. Bg2 {[%clk 0:02:10]}  Nb6 {[%clk 0:02:00]} 17. Qf2 {[%clk 0:02:06]}  Nc4 {[%clk 0:01:58]} 18. Bc1 {[%clk 0:02:06]}  d5 {[%clk 0:01:55]} 19. e5 {[%clk 0:01:25]}  Bc5 {[%clk 0:01:54]} 20. Rd1 {[%clk 0:01:25]}  Qb6 {[%clk 0:01:50]} 21. b3 {[%clk 0:01:21]}  Na5 {[%clk 0:01:41]} 22. Be3 {[%clk 0:01:15]}  Bd7 {[%clk 0:01:37]} 23. Nce2 {[%clk 0:01:08]}  Nbc6 {[%clk 0:01:14]} 24. Rd3 {[%clk 0:01:02]}  Nxd4 {[%clk 0:01:13]} 25. Nxd4 {[%clk 0:01:02]}  Nc6 {[%clk 0:01:11]} 26. c3 {[%clk 0:00:55]}  Bxd4 {[%clk 0:01:03]} 27. cxd4 {[%clk 0:00:54]}  Nb4 {[%clk 0:00:59]} 28. Rd2 {[%clk 0:00:47]}  Rc3 {[%clk 0:00:58]} 29. Re1 {[%clk 0:00:46]}  Rfc8 {[%clk 0:00:57]} 30. h4 {[%clk 0:00:44]}  Nc2 {[%clk 0:00:56]} 31. Ree2 {[%clk 0:00:42]}  Qxb3 {[%clk 0:00:55]} 32. Kh2 {[%clk 0:00:36]}  Nxe3 {[%clk 0:00:53]} 0-1


[Site "https://www.chess.com"]

[Event "Titled Tuesday Blitz November 07 Early 2023"]
[White "Perdomo, Leandro"]
[Black "Le, Tuan Minh"]
[WhiteFideId "109746"]
[BlackFideId "12401153"]
[WhiteElo "2713"]
[BlackElo "3062"]
[Result "0-1"]
[Round "8"]
[TimeControl "180+1"]
[Date "2023.11.07"]
[WhiteClock "0:00:00"]
[BlackClock "0:00:10"]
[Board "19"]

1. d4 {[%clk 0:02:57]}  d5 {[%clk 0:02:57]} 2. c4 {[%clk 0:02:57]}  c6 {[%clk 0:02:57]} 3. Nf3 {[%clk 0:02:55]}  Nf6 {[%clk 0:02:58]} 4. cxd5 {[%clk 0:02:56]}  cxd5 {[%clk 0:02:58]} 5. Nc3 {[%clk 0:02:57]}  Nc6 {[%clk 0:02:57]} 6. e3 {[%clk 0:02:57]}  a6 {[%clk 0:02:54]} 7. Ne5 {[%clk 0:02:57]}  Bd7 {[%clk 0:02:49]} 8. Bd3 {[%clk 0:02:55]}  e6 {[%clk 0:02:47]} 9. O-O {[%clk 0:02:55]}  Bb4 {[%clk 0:02:38]} 10. Bd2 {[%clk 0:02:47]}  O-O {[%clk 0:02:38]} 11. Qf3 {[%clk 0:02:43]}  Ne7 {[%clk 0:02:16]} 12. Qh3 {[%clk 0:02:31]}  Ng6 {[%clk 0:02:13]} 13. f4 {[%clk 0:02:20]}  Rc8 {[%clk 0:02:11]} 14. Rf3 {[%clk 0:02:14]}  Bb5 {[%clk 0:01:40]} 15. Bc2 {[%clk 0:01:41]}  a5 {[%clk 0:01:20]} 16. g4 {[%clk 0:01:35]}  Ba6 {[%clk 0:01:14]} 17. g5 {[%clk 0:01:33]}  Ne4 {[%clk 0:01:11]} 18. Bxe4 {[%clk 0:01:22]}  dxe4 {[%clk 0:01:10]} 19. Rg3 {[%clk 0:01:21]}  Bxc3 {[%clk 0:01:00]} 20. bxc3 {[%clk 0:01:14]}  Ne7 {[%clk 0:00:51]} 21. Qg4 {[%clk 0:01:01]}  Nf5 {[%clk 0:00:51]} 22. Rh3 {[%clk 0:01:01]}  g6 {[%clk 0:00:42]} 23. Qg2 {[%clk 0:00:57]}  Qb6 {[%clk 0:00:33]} 24. Nd7 {[%clk 0:00:53]}  Qd8 {[%clk 0:00:20]} 25. Nf6+ {[%clk 0:00:53]}  Qxf6 {[%clk 0:00:21]} 26. gxf6 {[%clk 0:00:53]}  Bd3 {[%clk 0:00:21]} 27. Rg3 {[%clk 0:00:31]}  b5 {[%clk 0:00:20]} 28. Rg5 {[%clk 0:00:31]}  h6 {[%clk 0:00:18]} 29. Rxf5 {[%clk 0:00:19]}  exf5 {[%clk 0:00:18]} 30. Kh1 {[%clk 0:00:19]}  Kh7 {[%clk 0:00:18]} 31. Rg1 {[%clk 0:00:18]}  Rc6 {[%clk 0:00:18]} 32. h4 {[%clk 0:00:18]}  Rxf6 {[%clk 0:00:18]} 33. h5 {[%clk 0:00:17]}  Bc4 {[%clk 0:00:17]} 34. Qh2 {[%clk 0:00:17]}  Rg8 {[%clk 0:00:17]} 35. Qh4 {[%clk 0:00:18]}  Re6 {[%clk 0:00:16]} 36. Bc1 {[%clk 0:00:18]}  Be2 {[%clk 0:00:14]} 37. Rg3 {[%clk 0:00:18]}  Bxh5 {[%clk 0:00:14]} 38. Ba3 {[%clk 0:00:17]}  Rc8 {[%clk 0:00:14]} 39. Bc5 {[%clk 0:00:16]}  b4 {[%clk 0:00:14]} 40. cxb4 {[%clk 0:00:15]}  axb4 {[%clk 0:00:15]} 41. Rg1 {[%clk 0:00:15]}  Ra8 {[%clk 0:00:12]} 42. Qf2 {[%clk 0:00:16]}  Bf3+ {[%clk 0:00:12]} 43. Kh2 {[%clk 0:00:16]}  Rea6 {[%clk 0:00:13]} 44. Rb1 {[%clk 0:00:14]}  Rxa2 {[%clk 0:00:12]} 45. Rb2 {[%clk 0:00:13]}  b3 {[%clk 0:00:13]} 46. d5 {[%clk 0:00:13]}  Rxb2 {[%clk 0:00:11]} 47. Qxb2 {[%clk 0:00:14]}  Ra2 {[%clk 0:00:11]} 48. Bd4 {[%clk 0:00:14]}  Kg8 {[%clk 0:00:10]} 49. Kg3 {[%clk 0:00:12]}  Rxb2 {[%clk 0:00:10]} 50. Bxb2 {[%clk 0:00:13]}  Kf8 {[%clk 0:00:11]} 51. Ba3+ {[%clk 0:00:13]}  Ke8 {[%clk 0:00:11]} 52. Kf2 {[%clk 0:00:11]}  Kd7 {[%clk 0:00:12]} 53. Ke1 {[%clk 0:00:11]}  g5 {[%clk 0:00:09]} 54. Kf2 {[%clk 0:00:09]}  f6 {[%clk 0:00:09]} 55. Kg3 {[%clk 0:00:09]}  h5 {[%clk 0:00:09]} 56. Kf2 {[%clk 0:00:07]}  h4 {[%clk 0:00:10]} 57. Kg1 {[%clk 0:00:04]}  g4 {[%clk 0:00:10]} 58. Kh2 {[%clk 0:00:03]}  Be2 {[%clk 0:00:10]} 59. Kg2 {[%clk 0:00:03]}  g3 {[%clk 0:00:10]} 60. d6 {[%clk 0:00:03]}  Bg4 {[%clk 0:00:09]} 61. Bb2 {[%clk 0:00:02]}  Kxd6 {[%clk 0:00:09]} 62. Bxf6 {[%clk 0:00:03]}  Kd5 {[%clk 0:00:10]} 63. Bb2 {[%clk 0:00:00]}  Kc4 {[%clk 0:00:10]} 0-1


[Site "https://www.chess.com"]

[Event "Titled Tuesday Blitz November 07 Early 2023"]
[White "NovozhilovSemen"]
[Black "Paravyan, David"]
[BlackFideId "4194985"]
[WhiteElo "2705"]
[BlackElo "3059"]
[Result "1-0"]
[Round "8"]
[TimeControl "180+1"]
[Date "2023.11.07"]
[WhiteClock "0:00:14"]
[BlackClock "0:00:23"]
[Board "20"]

1. d4 {[%clk 0:03:00]}  Nf6 {[%clk 0:02:59]} 2. Nf3 {[%clk 0:03:00]}  d5 {[%clk 0:02:59]} 3. c4 {[%clk 0:03:01]}  e6 {[%clk 0:02:59]} 4. g3 {[%clk 0:03:01]}  dxc4 {[%clk 0:02:59]} 5. Bg2 {[%clk 0:03:01]}  Bb4+ {[%clk 0:03:00]} 6. Bd2 {[%clk 0:03:01]}  a5 {[%clk 0:03:00]} 7. O-O {[%clk 0:03:01]}  O-O {[%clk 0:02:59]} 8. e3 {[%clk 0:03:02]}  Ra6 {[%clk 0:02:58]} 9. Ne5 {[%clk 0:03:01]}  b5 {[%clk 0:02:58]} 10. b3 {[%clk 0:03:00]}  cxb3 {[%clk 0:02:57]} 11. axb3 {[%clk 0:02:59]}  c5 {[%clk 0:02:47]} 12. Bxb4 {[%clk 0:02:35]}  axb4 {[%clk 0:02:46]} 13. Rxa6 {[%clk 0:02:31]}  Nxa6 {[%clk 0:02:47]} 14. Qd3 {[%clk 0:02:27]}  Qb6 {[%clk 0:02:45]} 15. Rc1 {[%clk 0:02:17]}  cxd4 {[%clk 0:02:41]} 16. Rc6 {[%clk 0:01:56]}  Qb8 {[%clk 0:02:40]} 17. Qxd4 {[%clk 0:01:52]}  h6 {[%clk 0:01:56]} 18. Nd2 {[%clk 0:01:46]}  Nc7 {[%clk 0:01:51]} 19. Rb6 {[%clk 0:01:40]}  Qa7 {[%clk 0:01:50]} 20. Nc6 {[%clk 0:01:39]}  Qa2 {[%clk 0:01:46]} 21. Ne7+ {[%clk 0:01:15]}  Kh7 {[%clk 0:01:45]} 22. Rc6 {[%clk 0:01:13]}  Nfe8 {[%clk 0:01:05]} 23. Nxc8 {[%clk 0:01:11]}  Nd5 {[%clk 0:00:56]} 24. Bxd5 {[%clk 0:01:09]}  exd5 {[%clk 0:00:57]} 25. Qxd5 {[%clk 0:01:04]}  Nf6 {[%clk 0:00:56]} 26. Qd3+ {[%clk 0:01:03]}  Kh8 {[%clk 0:00:56]} 27. Nd6 {[%clk 0:01:00]}  Kg8 {[%clk 0:00:55]} 28. f3 {[%clk 0:00:56]}  Rd8 {[%clk 0:00:55]} 29. Rc8 {[%clk 0:00:53]}  Rxc8 {[%clk 0:00:54]} 30. Nxc8 {[%clk 0:00:54]}  Qa1+ {[%clk 0:00:55]} 31. Kg2 {[%clk 0:00:53]}  Qc3 {[%clk 0:00:50]} 32. Ne7+ {[%clk 0:00:36]}  Kh8 {[%clk 0:00:48]} 33. Qd4 {[%clk 0:00:34]}  Kh7 {[%clk 0:00:43]} 34. g4 {[%clk 0:00:30]}  g6 {[%clk 0:00:39]} 35. Ne4 {[%clk 0:00:22]}  Nxe4 {[%clk 0:00:34]} 36. fxe4 {[%clk 0:00:19]}  Qxb3 {[%clk 0:00:31]} 37. Nd5 {[%clk 0:00:18]}  Qc2+ {[%clk 0:00:21]} 38. Kg3 {[%clk 0:00:18]}  Qc1 {[%clk 0:00:22]} 39. Nf6+ {[%clk 0:00:15]}  Kg7 {[%clk 0:00:22]} 40. Nh5+ {[%clk 0:00:14]}  Kf8 {[%clk 0:00:23]} 41. Qd8# {[%clk 0:00:14]} 1-0


[Site "https://www.chess.com"]

[Event "Titled Tuesday Blitz November 07 Early 2023"]
[White "Klimkowski, Jan"]
[Black "Melian, Juan Sebastian"]
[WhiteFideId "21856222"]
[BlackFideId "3706575"]
[WhiteElo "2809"]
[BlackElo "2671"]
[Result "1-0"]
[Round "8"]
[TimeControl "180+1"]
[Date "2023.11.07"]
[WhiteClock "0:00:49"]
[BlackClock "0:00:00"]
[Board "30"]

1. e4 {[%clk 0:03:00]}  e5 {[%clk 0:02:56]} 2. Nf3 {[%clk 0:03:01]}  Nc6 {[%clk 0:02:56]} 3. Bb5 {[%clk 0:03:00]}  a6 {[%clk 0:02:56]} 4. Ba4 {[%clk 0:03:00]}  Nf6 {[%clk 0:02:56]} 5. O-O {[%clk 0:03:00]}  Nxe4 {[%clk 0:02:53]} 6. Re1 {[%clk 0:02:58]}  Nc5 {[%clk 0:02:22]} 7. Bxc6 {[%clk 0:02:57]}  dxc6 {[%clk 0:02:23]} 8. Nxe5 {[%clk 0:02:58]}  Be7 {[%clk 0:02:24]} 9. d4 {[%clk 0:02:58]}  Ne6 {[%clk 0:02:24]} 10. Be3 {[%clk 0:02:58]}  O-O {[%clk 0:02:24]} 11. c4 {[%clk 0:02:59]}  Bf6 {[%clk 0:02:24]} 12. f4 {[%clk 0:02:49]}  Re8 {[%clk 0:02:17]} 13. Nc3 {[%clk 0:02:47]}  g6 {[%clk 0:02:12]} 14. Qd2 {[%clk 0:02:41]}  Ng7 {[%clk 0:02:06]} 15. Rad1 {[%clk 0:02:40]}  Be6 {[%clk 0:01:59]} 16. Ne4 {[%clk 0:02:33]}  Be7 {[%clk 0:01:51]} 17. d5 {[%clk 0:02:00]}  cxd5 {[%clk 0:01:48]} 18. cxd5 {[%clk 0:02:01]}  Bf5 {[%clk 0:01:48]} 19. Nc5 {[%clk 0:02:00]}  Qc8 {[%clk 0:01:32]} 20. Rc1 {[%clk 0:01:57]}  Bd6 {[%clk 0:01:11]} 21. Bf2 {[%clk 0:01:53]}  f6 {[%clk 0:00:57]} 22. Nc4 {[%clk 0:01:50]}  Bxc5 {[%clk 0:00:45]} 23. Bxc5 {[%clk 0:01:49]}  Qd7 {[%clk 0:00:32]} 24. d6 {[%clk 0:01:23]}  b5 {[%clk 0:00:20]} 25. Na5 {[%clk 0:01:13]}  cxd6 {[%clk 0:00:18]} 26. Qxd6 {[%clk 0:01:14]}  Qxd6 {[%clk 0:00:17]} 27. Bxd6 {[%clk 0:01:15]}  Rxe1+ {[%clk 0:00:17]} 28. Rxe1 {[%clk 0:01:16]}  Re8 {[%clk 0:00:12]} 29. Kf2 {[%clk 0:01:06]}  Kf7 {[%clk 0:00:11]} 30. Nc6 {[%clk 0:01:04]}  Rxe1 {[%clk 0:00:10]} 31. Kxe1 {[%clk 0:01:05]}  Be4 {[%clk 0:00:05]} 32. Nb8 {[%clk 0:01:02]}  Bb7 {[%clk 0:00:06]} 33. g4 {[%clk 0:00:53]}  Ke6 {[%clk 0:00:05]} 34. Bf8 {[%clk 0:00:51]}  Ne8 {[%clk 0:00:05]} 35. Kd2 {[%clk 0:00:51]}  Nd6 {[%clk 0:00:03]} 36. Kd3 {[%clk 0:00:51]}  Ne4 {[%clk 0:00:02]} 37. Kd4 {[%clk 0:00:50]}  Nf2 {[%clk 0:00:01]} 38. g5 {[%clk 0:00:49]}  fxg5 {[%clk 0:00:02]} 39. fxg5 {[%clk 0:00:50]}  Ne4 {[%clk 0:00:02]} 40. h4 {[%clk 0:00:49]}  Ng3 {[%clk 0:00:02]} 41. Kc5 {[%clk 0:00:49]}  Nf5 {[%clk 0:00:01]} 42. Kb6 {[%clk 0:00:49]}  Be4 {[%clk 0:00:01]} 43. Nxa6 {[%clk 0:00:49]}  Bd3 {[%clk 0:00:01]} 44. Nc5+ {[%clk 0:00:48]}  Kd5 {[%clk 0:00:00]} 45. Nxd3 {[%clk 0:00:49]} 1-0


[Site "https://www.chess.com"]

[Event "Titled Tuesday Blitz November 07 Early 2023"]
[White "Skliarov, Viktor"]
[Black "Molina, Roberto Junio Brito"]
[WhiteFideId "14106736"]
[BlackFideId "2109450"]
[WhiteElo "2670"]
[BlackElo "2806"]
[Result "1/2-1/2"]
[Round "8"]
[TimeControl "180+1"]
[Date "2023.11.07"]
[WhiteClock "0:00:10"]
[BlackClock "0:00:28"]
[Board "31"]

1. e4 {[%clk 0:03:00]}  c6 {[%clk 0:02:59]} 2. d4 {[%clk 0:03:00]}  d5 {[%clk 0:03:00]} 3. e5 {[%clk 0:03:01]}  Bf5 {[%clk 0:02:59]} 4. Nf3 {[%clk 0:03:01]}  e6 {[%clk 0:02:59]} 5. Be2 {[%clk 0:03:02]}  Bg6 {[%clk 0:02:57]} 6. O-O {[%clk 0:03:02]}  Nd7 {[%clk 0:02:56]} 7. a4 {[%clk 0:03:02]}  Rc8 {[%clk 0:02:51]} 8. Na3 {[%clk 0:02:57]}  Ne7 {[%clk 0:02:50]} 9. b4 {[%clk 0:02:53]}  Nf5 {[%clk 0:02:49]} 10. c3 {[%clk 0:02:53]}  a5 {[%clk 0:02:47]} 11. Nc2 {[%clk 0:02:42]}  Be7 {[%clk 0:02:44]} 12. g4 {[%clk 0:02:37]}  Nh4 {[%clk 0:02:42]} 13. Nxh4 {[%clk 0:02:37]}  Bxh4 {[%clk 0:02:42]} 14. f4 {[%clk 0:02:38]}  f5 {[%clk 0:02:30]} 15. exf6 {[%clk 0:02:17]}  Bxf6 {[%clk 0:02:28]} 16. g5 {[%clk 0:01:47]}  Be7 {[%clk 0:02:27]} 17. Bg4 {[%clk 0:01:47]}  Bf5 {[%clk 0:02:26]} 18. Bxf5 {[%clk 0:01:21]}  exf5 {[%clk 0:02:27]} 19. Qh5+ {[%clk 0:01:21]}  g6 {[%clk 0:02:26]} 20. Qh6 {[%clk 0:01:22]}  Kf7 {[%clk 0:02:25]} 21. Re1 {[%clk 0:01:16]}  axb4 {[%clk 0:02:13]} 22. cxb4 {[%clk 0:01:12]}  Bd6 {[%clk 0:02:11]} 23. Bd2 {[%clk 0:00:57]}  Qf8 {[%clk 0:02:04]} 24. Qh3 {[%clk 0:00:49]}  Qg7 {[%clk 0:02:03]} 25. a5 {[%clk 0:00:35]}  Rhe8 {[%clk 0:01:49]} 26. a6 {[%clk 0:00:34]}  Rxe1+ {[%clk 0:01:46]} 27. Bxe1 {[%clk 0:00:34]}  b5 {[%clk 0:01:43]} 28. Bd2 {[%clk 0:00:28]}  Nb6 {[%clk 0:01:43]} 29. a7 {[%clk 0:00:27]}  Ke7 {[%clk 0:01:33]} 30. Ra6 {[%clk 0:00:25]}  Bc7 {[%clk 0:01:33]} 31. Qc3 {[%clk 0:00:18]}  Kd7 {[%clk 0:01:29]} 32. Qc5 {[%clk 0:00:16]}  Qe7 {[%clk 0:01:11]} 33. Rxb6 {[%clk 0:00:16]}  Bxb6 {[%clk 0:01:11]} 34. Qxb6 {[%clk 0:00:16]}  Qe2 {[%clk 0:01:05]} 35. Qb7+ {[%clk 0:00:16]}  Rc7 {[%clk 0:01:06]} 36. Qxc7+ {[%clk 0:00:15]}  Kxc7 {[%clk 0:01:06]} 37. a8=Q {[%clk 0:00:16]}  Qd1+ {[%clk 0:01:04]} 38. Ne1 {[%clk 0:00:13]}  Qxd2 {[%clk 0:01:04]} 39. Qa7+ {[%clk 0:00:13]}  Kc8 {[%clk 0:00:58]} 40. Ng2 {[%clk 0:00:11]}  Qd1+ {[%clk 0:00:36]} 41. Kf2 {[%clk 0:00:11]}  Qd2+ {[%clk 0:00:36]} 42. Kf3 {[%clk 0:00:10]}  Qd1+ {[%clk 0:00:32]} 43. Kg3 {[%clk 0:00:10]}  Qd3+ {[%clk 0:00:28]} 44. Kf2 {[%clk 0:00:10]}  Qd2+ {[%clk 0:00:28]} 45. Kf3 {[%clk 0:00:10]}  Qd1+ {[%clk 0:00:28]} 46. Kf2 {[%clk 0:00:10]}  Qd2+ {[%clk 0:00:28]} 1/2-1/2


[Site "https://www.chess.com"]